Cogmind - Beta 9.2 @@@ ROGUE MODE // 2019.11.24 @ 17:00:23 Player: Fleshy Vegetable Bird Result: Destroyed by D-53 Grenadier with Mini Grenade Launcher Performance ------------- Evolutions (0) 0 Regions Visited (4) 800 Robots Destroyed (12) 60 Value Destroyed (231) 231 Prototype IDs (2) 40 Alien Tech Used (0) 0 Bonus (188) 188 TOTAL SCORE: 1319 Bonus ------- Follower Combat Kills 212 Friendly Fire -24 Cogmind --------- Core Integrity 0/250 Matter 300/300 Energy 100/100 System Corruption 0% Temperature Cool (0) Movement Rolling (130) Ox3 Location -9/Mines Parts ------- > --- POWER (1) -------- (None) > --- PROPULSION (2) --- Compact Wheel > --- UTILITY (2) ------ High-capacity Storage Unit High-capacity Storage Unit > --- WEAPON (2) ------- (None) > --- INVENTORY (20) --- Light Ion Engine Light Treads Light Treads Wheel Large Storage Unit Large Storage Unit Light Assault Rifle Grenade Launcher Mining Laser Signal Generator Peak State ------------ > --- POWER ------------ Ion Engine > --- PROPULSION ------- Wheel Wheel > --- UTILITY ---------- Small Storage Unit Large Storage Unit > --- WEAPON ----------- EM Pulse Gun Medium Laser > --- INVENTORY -------- Light Treads Light Treads Wheel Compact Wheel Assault Rifle Light Assault Rifle Mining Laser Signal Generator [Rating: 8] Favorites ----------- Power Ion Engine Engine Ion Engine Propulsion Wheel Treads Light Treads Wheel Wheel Utility Small Storage Unit Storage Small Storage Unit Weapon EM Pulse Gun Energy Gun EM Pulse Gun Ballistic Gun Assault Rifle Build | -11 -10 -10 -10 -9 ------- Run | Scr Mat Min Exi Min Slots Evolved . | . . . . . Power . | . . . . . Propulsion . | . . . . . Utility . | . . . . . Weapon . | . . . . . Parts Attached 15 | 6 2 4 2 1 Power 1 | 1 . . . . Engine 1 | 1 . . . . Core . | . . . . . Reactor . | . . . . . Propulsion 6 | 2 . 3 . 1 Treads 1 | . . 1 . . Leg . | . . . . . Wheel 5 | 2 . 2 . 1 Hover . | . . . . . Flight . | . . . . . Utility 5 | 2 1 . 2 . Device . | . . . . . Storage 5 | 2 1 . 2 . Processor . | . . . . . Hackware . | . . . . . Protection . | . . . . . Artifact . | . . . . . Weapon 3 | 1 1 1 . . Energy Gun 2 | 1 1 . . . Energy Cannon . | . . . . . Ballistic Gun 1 | . . 1 . . Ballistic Cannon . | . . . . . Launcher . | . . . . . Special Weapon . | . . . . . Impact Weapon . | . . . . . Slashing Weapon . | . . . . . Piercing Weapon . | . . . . . Special Melee Weapon . | . . . . . Unidentified Prototypes . | . . . . . Parts Lost 7 | . . 2 . 5 Power 1 | . . . . 1 Propulsion 3 | . . 1 . 2 Utility . | . . . . . Weapon 3 | . . 1 . 2 Highest Loss Streak 5 | . . 2 . 5 Average Slot Usage (%) 99 | . 97 99 100 97 Engine 13 | . 14 14 14 13 Wheel 26 | . 28 25 28 27 Storage 28 | . 28 28 28 28 Energy Gun 15 | . 25 16 14 13 Ballistic Gun 11 | . . 11 14 13 Naked Turns . | . . . . . Heaviest Build 73 | 15 29 29 73 73 Greatest Support 26 | 20 20 20 20 26 Greatest Overweight (x) 7 | . 1 1 3 7 Average Overweight (x) 1 | . . 1 1 3 Largest Inventory Capacity 20 | 8 12 12 20 20 Average Capacity 14 | 6 11 12 16 20 Most Carried 11 | 7 8 9 11 11 Average Carried 8 | 5 7 8 9 10 Final Capacity 20 | 8 12 12 20 20 Final Carried 11 | 7 7 9 11 10 Class Distribution -------------------- 73% | Mutant 26% | Hauler-Mutant Dominant Class ---------------- Mutant | -10/Materials Mutant | -10/Mines Mutant | -10/Exiles Hauler-Mutant | -9/Mines Resources | -11 -10 -10 -10 -9 ----------- Run | Scr Mat Min Exi Min Matter Collected 367 | 235 45 55 . 32 Remotely . | . . . . . Salvage Created 363 | 86 86 131 . 60 Parts 37 | 9 5 19 . 4 Haulers Intercepted . | . . . . . Recyclers Shooed . | . . . . . Parts Field Recycled . | . . . . . Retrieved Matter . | . . . . . Parts Self-Destructed . | . . . . . Prevented . | . . . . . Kills | -11 -10 -10 -10 -9 ------- Run | Scr Mat Min Exi Min Combat Hostiles Destroyed 7 | . 2 4 . 1 Guns 5 | . . 4 . 1 AOE 2 | . 2 . . . Classes Destroyed 5 | 2 1 1 . 1 Worker 1 | . . . . 1 Tunneler 3 | 2 . 1 . . Recycler 1 | 1 . . . . Swarmer 2 | . . 2 . . Grunt 5 | . 2 2 . 1 Best Kill Streak 4 | 1 2 4 . 1 Combat Bots Only 4 | . 2 4 . 1 Max Kills in Single Turn 2 | 1 2 1 . 1 Gunslinging . | . . . . . Exploded 2 | . 2 . . . Melee . | . . . . . Uniques/NPCs Destroyed . | . . . . . Combat | -11 -10 -10 -10 -9 -------- Run | Scr Mat Min Exi Min Damage Taken 775 | . 127 304 . 344 Core 267 | . 21 130 . 116 Absorbed by Shields . | . . . . . Core Remaining (%) 100 | 100 . . . . Volleys Fired 32 | 11 3 14 . 4 Largest 2 | 1 2 2 . 2 Hottest 90 | 50 90 90 . 60 Shots Fired 43 | 11 6 19 . 7 Gun 43 | 11 6 19 . 7 Cannon . | . . . . . Launcher . | . . . . . Special . | . . . . . Kinetic 9 | . . 5 . 4 Thermal 19 | 11 3 5 . . Explosive . | . . . . . Electromagnetic 15 | . 3 9 . 3 Robot Hit Streak 4 | 2 2 3 . 4 Robot Miss Streak 3 | 2 2 3 . 2 Penetration Max . | . . . . . Secondary Targets 2 | . . 2 . . Max Gunslinging Chain 1 | . . 1 . . Shots Hit Robots 25 | 7 3 10 . 5 Core Hits 20 | 4 3 8 . 5 Critical Hits . | . . . . . Critical Kills . | . . . . . Critical Parts Destroyed . | . . . . . Melee Attacks . | . . . . . Impact . | . . . . . Slashing . | . . . . . Piercing . | . . . . . Sneak Attacks . | . . . . . Combat Hostiles . | . . . . . Follow-up Attacks . | . . . . . Damage Inflicted 497 | 89 168 176 . 64 Guns 361 | 89 37 171 . 64 Cannons . | . . . . . Explosions 131 | . 131 . . . Melee . | . . . . . Ramming 5 | . . 5 . . Kinetic 86 | . . 47 . 39 Thermal 282 | 89 144 49 . . Explosive . | . . . . . Electromagnetic 124 | . 24 75 . 25 Impact . | . . . . . Slashing . | . . . . . Piercing . | . . . . . Highest Corruption . | . . . . . Average Corruption . | . . . . . Corruption Purged . | . . . . . Overload Shots . | . . . . . Overflow Damage . | . . . . . Projectiles . | . . . . . Explosions . | . . . . . Melee . | . . . . . Knockbacks . | . . . . . Impact . | . . . . . Kinetic . | . . . . . Secondary . | . . . . . Self-Inflicted Damage 45 | . 43 2 . . Shots 1 | . 1 . . . Rammed 1 | . . 1 . . Targets Rammed 1 | . . 1 . . Kicked . | . . . . . Crushed . | . . . . . Highest Temperature 261 | 10 129 261 . 9 Average Temperature 115 | 7 66 156 . 9 Received Heat Transfer 165 | . 27 129 . 9 Effects 1 | . . 1 . . Interference 1 | . . 1 . . Siege Activations . | . . . . . Robots Corrupted . | . . . . . Combat Hostiles . | . . . . . Parts Fried . | . . . . . Impact Corruptions . | . . . . . Robots Melted . | . . . . . Combat Hostiles . | . . . . . Parts Melted . | . . . . . Heat Transferred 544 | 259 137 148 . . Parts Sabotaged . | . . . . . Parts Stolen . | . . . . . Parts Stripped . | . . . . . Power Chain Reactions 1 | . 1 . . . Missiles Intercepted . | . . . . . Alert | -11 -10 -10 -10 -9 ------- Run | Scr Mat Min Exi Min Peak Influence 187 | 15 97 181 . 187 Average Influence 64 | 6 40 96 . 38 Maximum Alert Level . | . . . . . Low Security (%) 100 | 100 100 100 . 100 Level 1 . | . . . . . Level 2 . | . . . . . Level 3 . | . . . . . Level 4 . | . . . . . Level 5 . | . . . . . High Security . | . . . . . Max Security . | . . . . . Squads Dispatched 3 | . 2 1 . . Investigation 1 | . 1 . . . Extermination . | . . . . . Reinforcement 1 | . 1 . . . Assault 1 | . . 1 . . Garrison . | . . . . . Intercept . | . . . . . Construction Impeded . | . . . . . Haulers Reinforced . | . . . . . Stealth | -11 -10 -10 -10 -9 --------- Run | Scr Mat Min Exi Min Distress Signals . | . . . . . Communications Jammed . | . . . . . Distress Signals . | . . . . . Times Spotted 37 | . 9 9 . 19 Peak Tracking Total 13 | . 4 7 . 13 Tactical Retreats 1 | . . . . 1 Traps | -11 -10 -10 -10 -9 ------- Run | Scr Mat Min Exi Min Traps Triggered 1 | . 1 . . . Indirectly . | . . . . . Trap Hack Attempts . | . . . . . Triggered . | . . . . . Disarmed . | . . . . . Reprogrammed . | . . . . . Reused . | . . . . . Traps Extracted . | . . . . . Installed . | . . . . . Triggered . | . . . . . Machines | -11 -10 -10 -10 -9 ---------- Run | Scr Mat Min Exi Min Machines Disabled . | . . . . . Max in Single Turn . | . . . . . Machines Sabotaged . | . . . . . Garrisons Compromised . | . . . . . Overloaded Fab Kills . | . . . . . Fab Network Shutdowns . | . . . . . Hacking | -11 -10 -10 -10 -9 --------- Run | Scr Mat Min Exi Min Machines Accessed 5 | . 4 . 1 . Terminals 3 | . 3 . . . Fabricators . | . . . . . Repair Stations . | . . . . . Recycling Units 1 | . 1 . . . Scanalyzers . | . . . . . Garrison Access . | . . . . . Total Hacks 39 | . 16 . 23 . Successful 33 | . 10 . 23 . Failed 6 | . 6 . . . Catastrophic . | . . . . . Database Lockouts . | . . . . . Manual 13 | . 13 . . . Terminals 15 | . 15 . . . Fabricators . | . . . . . Repair Stations . | . . . . . Recycling Units 1 | . 1 . . . Scanalyzers . | . . . . . Garrison Access . | . . . . . Terminal Hacks 27 | . 4 . 23 . Record 23 | . . . 23 . Part Schematic 1 | . 1 . . . Prototype ID Bank 1 | . 1 . . . Recall Reinforcements 1 | . 1 . . . Zone Layout 1 | . 1 . . . Fabricator Hacks . | . . . . . Repair Station Hacks . | . . . . . Recycling Unit Hacks . | . . . . . Scanalyzer . | . . . . . Garrison Access Hacks . | . . . . . Unauthorized Hacks 15 | . 15 . . . Terminals 5 | . 5 . . . Track 2 | . 2 . . . Assimilate 1 | . 1 . . . Botnet 2 | . 2 . . . Fabricators . | . . . . . Repair Stations . | . . . . . Recycling Units 1 | . 1 . . . Tunnel 1 | . 1 . . . Scanalyzers . | . . . . . Garrison Access . | . . . . . Data Cores Recovered . | . . . . . Used . | . . . . . Hacking Detections 3 | . 3 . . . Full Trace Events . | . . . . . Feedback Events . | . . . . . Feedback Blocked . | . . . . . Robot Schematics Acquired . | . . . . . Robots Built . | . . . . . Matter . | . . . . . Time . | . . . . . Total Robot Build Rating . | . . . . . Part Schematics Acquired 1 | . 1 . . . Parts Built . | . . . . . Matter . | . . . . . Time . | . . . . . Total Part Build Rating . | . . . . . Parts Repaired . | . . . . . Time . | . . . . . Parts Recycled . | . . . . . Recycled Matter . | . . . . . Retrieved Matter . | . . . . . Retrieved Components . | . . . . . Parts Scanalyzed . | . . . . . Part Schematics Acquired . | . . . . . Parts Damaged . | . . . . . Bothacking | -11 -10 -10 -10 -9 ------------ Run | Scr Mat Min Exi Min Used RIF Installer . | . . . . . Robots Hacked . | . . . . . Non-combat . | . . . . . Combat . | . . . . . Robot Hacks Applied . | . . . . . Relay Couplers Released . | . . . . . Robots Rewired . | . . . . . Allies Hacked . | . . . . . Hacks Repelled . | . . . . . Allies | -11 -10 -10 -10 -9 -------- Run | Scr Mat Min Exi Min Total Allies 7 | . 1 1 . 5 Largest Group 5 | . 1 2 1 5 Highest-Rated Group 112 | . 10 41 31 112 Highest-Rated Ally 31 | . 10 31 31 31 Total Orders . | . . . . . Ally Attacks 37 | . . 8 . 29 Total Damage 485 | . . 104 . 381 Kills 9 | . . 3 . 6 Allies Corrupted . | . . . . . Allies Melted . | . . . . . Intel | -11 -10 -10 -10 -9 ------- Run | Scr Mat Min Exi Min Robot Analysis Total . | . . . . . Derelict Logs Recovered 3 | . . 3 . . Drone Launches . | . . . . . Drone Recoveries . | . . . . . Exploration | -11 -10 -10 -10 -9 ------------- Run | Scr Mat Min Exi Min Turns Passed 1661 | 118 177 611 439 316 Spaces Moved 1404 | 77 184 541 333 269 Core 8 | 8 . . . . Treads 35 | . . 35 . . Legs . | . . . . . Wheels 1361 | 69 184 506 333 269 Hover . | . . . . . Flight . | . . . . . Fastest Speed 50 | 50 80 90 90 110 Average Speed 97 | 76 87 95 99 110 Slowest Speed 180 | 80 90 180 110 150 Overloaded Moves . | . . . . . Propulsion Burnouts . | . . . . . Robots Hopped . | . . . . . Cave-ins Triggered . | . . . . . Exploration Rate (%) 50 | 5 36 99 59 54 Regions Visited 4 Branch Regions 3 Pre-discovered Areas 3 | . 1 1 1 . Known Exits Taken . | . . . . . Unknown Exits Taken 4 | 1 1 1 1 . Scrap Searched 6 | . . 4 . 2 Spaces Dug . | . . . . . Terrain Destroyed 4 | . 4 . . . Melee . | . . . . . Projectile . | . . . . . AOE 4 | . 4 . . . Actions | -11 -10 -10 -10 -9 --------- Run | Scr Mat Min Exi Min Total 1652 | 125 194 613 441 279 Wait 172 | 17 3 48 99 5 Move 1400 | 76 183 540 332 269 Hop . | . . . . . Pick Up 26 | 14 2 5 5 . Fast Attach . | . . . . . Attach 10 | 6 1 2 . 1 Detach . | . . . . . Swap 5 | . 1 2 2 . Drop 6 | 1 1 1 3 . Fire 32 | 11 3 14 . 4 Melee . | . . . . . Ram 1 | . . 1 . . Kick . | . . . . . Crush . | . . . . . Escape Stasis . | . . . . . Rewire . | . . . . . Trap . | . . . . . Miscellaneous . | . . . . . Route ------- -11/Scrapyard -10/Materials -10/Mines (discovered 3 exits: *Mat x2 / *Exi) -10/Exiles (discovered 2 exits: [*Min x2]) -9/Mines (discovered 1 exit: [*Mat]) History --------- Turn | Location | Event 6 | -11/Scrapyard | Discovered new exit (range 15) 119 | -11/Scrapyard | Entered Materials 153 | -10/Materials | Discovered new exit (range 16) 296 | -10/Materials | Entered Mines 296 | -10/Mines | Accompanied by 1 ally 296 | -10/Mines | Discovered new exit (range 14) 308 | -10/Mines | Met a Derelict testing a Signal Generator 314 | -10/Mines | Found Signal Generator 318 | -10/Mines | Build established: Mutant 388 | -10/Mines | Core integrity fell below 50% 587 | -10/Mines | Deemed a non-threat by the Exiles lab entrance 607 | -10/Mines | Identified exit to Materials 702 | -10/Mines | Learned Materials stockpile data 872 | -10/Mines | Discovered new exit (range 5) 907 | -10/Mines | Entered Exiles 907 | -10/Exiles | Accompanied by 1 ally 919 | -10/Exiles | Discovered new exit (range 15) 930 | -10/Exiles | Met 8R-AWN 950 | -10/Exiles | Met EX-HEX 986 | -10/Exiles | Met EX-DEC 1296 | -10/Exiles | Learned location of Zion (-6) 1325 | -10/Exiles | Discovered new exit (range 14) 1346 | -10/Exiles | Entered Mines 1346 | -9/Mines | Accompanied by 1 ally 1359 | -9/Mines | Discovered new exit (range 7) 1372 | -9/Mines | Assisted by bots powering up and referring to "LRC-V3" 1507 | -9/Mines | Build established: Hauler-Mutant 1621 | -9/Mines | Assembled infested the area 1655 | -9/Mines | Core integrity fell below 20% 1662 | -9/Mines | Destroyed by D-53 Grenadier with Mini Grenade Launcher Last Messages --------------- 01646_ as-91470 destroyed. 01646_ as-28956 destroyed. 01646_ as-38568 destroyed. 01647_ as-98293 destroyed. 01647_ as-35966 destroyed. 01648_ as-48782 destroyed. 01650_ The unstable cave ceiling collapses. 01650_ as-05729 destroyed. 01651_ The unstable cave ceiling collapses. 01652_ as-34418 destroyed. 01654_ U-05 Engineer lays Concrete. 01654_ Ion Engine destroyed. 01655_ The unstable cave ceiling collapses. 01655_ U-05 Engineer lays Concrete. 01656_ The unstable cave ceiling collapses. 01656_ U-05 Engineer lays Concrete. 01656_ Assault Rifle destroyed. 01656_ U-05 Engineer destroyed. 01657_ The unstable cave ceiling collapses. 01660_ Wheel destroyed. Map ----- +----------------------------------------------------+ | | | | | | | | | | | | | | | | | | | | | | | ???????????????????????????????????????????????? | | ???????????????????????????????????????????????? | | ????????????????????##?????????????????????????? | | ???????????????????## ?????????????????????????? | | ???????????????????# ????????????????????????? | | ???????????????????# ????????????????????????? | | ???????????????????# #???????????????????????? | | ???????????????????# ########???????????????? | | ????????????? ?????? ###?????????????? | | ?????????????"""??????# #?????????????? | | ??????????????"" ??#### ##????????????? | | ?????????????""" ## ! #????????????? | | ??????????????"" | ##????????????? | | ??????????? ## #????????????? | | ????????????????????# @ d d##???????????? | | ????????????????????## # % ##??????????? | | ?????????????????????# # # #?????????## | | ????????????????????# ##### #????????## | | ????????????????????###????## #????????# | | ????????????????????????????# ??????## | | ????????????????????????????## # ##### | | ?????????????????????????????# # | | ?????????????????????????????## # = | | ??????????????????????????????# [= % ! | | ??????????????????????????????## # = # | | ???????????????????????????????# ## | | ????????????????????????????????### # # #? | | ???????????????????????????????????####??## ##? | | ??????????????????????????????????????????# ##?? | | ???????????????????????????????????# ### #??? | | ?????????????????????????????# #??? | | ????????????????????????????# ## #### | | ???????????????????????????? ??# | | ????????????????????????????? ###???###???###### | | ??????????????????????????????????????????????## | | ??????????????????????????????????????????????# | | ??????????????????????????????????????????????# | | ??????????????????????????????????????????????## | | ???????????????????????????????????????????????# | +----------------------------------------------------+ Best States ------------- Heat Dissipation 25 Energy Generation 10 Energy Capacity 250 Matter Stores 300 Matter Capacity 300 Sight Range 16 Terrain Scan Density 10 Evasion (%) 50 Recoil Reduction 1 Item Schematics ----------------- Lrg. Storage Unit | -10/Materials | Hacked Robot Schematics ------------------ None Fabricated ------------ Nothing Alien Tech Used ----------------- None Achievements -------------- None Challenges ------------ None Game ------ Seed SuspensionTerrainChip Manual? 0 Play Time 00:13:22 Cumulative 189.2 hours Start 2019.11.24 @ 16:49:37 End 2019.11.24 @ 17:00:23 Sessions 1 Manual Loads 0 Difficulty Rogue Special Mode None Game No. 263 Rogue 263 Adventurer 0 Explorer 0 Win Type - Total 1 Types 1/0/0/0/0/0/0 Lore% 51 Gallery% 71 Achievement% 48 Wizard Run 0 Options --------- ASCII 0 Keyboard 0 Movement Numpad Keybinds 0 Fullscreen 1 Font 16/Terminus Map View 75x55 Tactical HUD 1 Map Filters NONE Filters NONE Steam 1 RUN: c096dbf0-6995-45de-8d14-a9719ac0325e